bitfinex-derivatives/quotes_ETHF0:USTF0_20241228
["timestamp","ask_amount","ask_price","bid_price","bid_amount"]
[1735380833229,0.29914,3348.4,3348.3,0.29915]
[1735380833429,0.29914,3348.4,3348.2,42.1393]
[1735380833734,0.29914,3348.4,3348.2,42.43845]
[1735380833926,0.29914,3348.4,3348.3,0.29915]
[1735380834127,3.50693,3348.5,3348.3,0.29914]
[1735380834434,3.2078,3348.5,3348.4,0.29914]
[1735380835025,3.50693,3348.5,3348.4,0.29914]
[1735380835535,3.50693,3348.5,3348.2,42.1393]
[1735380835733,3.50693,3348.5,3348.3,0.29914]
[1735380836035,3.2078,3348.5,3348.2,42.1393]
[1735380836235,0.29914,3348.4,3348.2,42.43845]
[1735380837831,3.50693,3348.5,3348.3,0.29914]
[1735380838231,3.50693,3348.5,3348.4,0.29914]
[1735380838731,3.50693,3348.5,3348.3,0.29914]
[1735380838932,3.2078,3348.5,3348.2,42.1393]
[1735380839132,0.29914,3348.4,3348.2,42.43845]
[1735380839337,0.29915,3348.3,3348.2,42.1393]
[1735380842737,0.29919,3347.8,3347.7,3.507]
[1735380842938,0.29919,3347.8,3347.7,3.2078]
[1735380843439,0.4503,3348.1,3347.7,44.0078]
[1735380843635,0.29918,3348.0,3347.8,0.74468]
[1735380843938,0.4503,3348.1,3347.8,0.4455]
[1735380844139,0.4503,3348.1,3347.9,0.4679]
[1735380844435,0.4503,3348.1,3347.7,44.0078]
[1735380844436,0.29919,3347.8,3347.7,40.8]
[1735380845933,0.29919,3347.9,3347.8,0.29919]
[1735380846242,0.29924,3347.3,3347.2,0.29924]
[1735380846533,0.29924,3347.3,3347.2,0.29925]
[1735380847135,3.2078,3347.6,3347.1,1.3455]
[1735380847340,0.29924,3347.3,3347.2,41.09925]
[1735380848341,0.29924,3347.3,3347.2,40.8]
[1735380849838,0.29924,3347.3,3347.2,41.09925]
[1735380850642,3.2078,3347.6,3347.2,40.8]
[1735380850848,3.2078,3347.6,3347.5,0.29922]
[1735380851533,3.2078,3347.6,3347.5,41.09922]
[1735380852538,3.50701,3347.6,3347.5,41.09922]
[1735380852739,3.50701,3347.6,3347.5,40.8]
[1735380859245,0.29925,3347.2,3347.1,1.3455]
[1735380859944,0.29925,3347.2,3347.1,0.8877]
[1735380860246,3.50705,3347.2,3347.1,0.8877]
[1735380861753,3.50705,3347.2,3347.1,0.4251]
[1735380864054,3.2078,3347.2,3347.1,0.72435]
[1735380864350,0.74802,3347.7,3347.1,0.4251]
[1735380864351,0.29923,3347.4,3347.1,0.4251]
[1735380864651,0.29923,3347.4,3347.2,0.29924]
[1735380865055,0.29923,3347.4,3347.3,0.76484]
[1735380865851,0.29922,3347.5,3347.4,0.29922]
[1735380866056,0.29921,3347.6,3347.5,0.29921]
[1735380868849,0.29922,3347.5,3347.4,0.29922]
[1735380869050,3.2078,3347.7,3347.3,0.4656]
[1735380869257,0.29921,3347.6,3347.5,0.29921]
[1735380870558,3.2078,3347.7,3347.3,0.4656]
[1735380870757,0.29923,3347.5,3347.4,0.4555]
[1735380872363,0.29923,3347.5,3347.4,0.75473]
[1735380872655,0.29923,3347.5,3347.4,0.4555]
[1735380873249,0.29923,3347.5,3347.4,0.75473]
[1735380874046,0.29923,3347.5,3347.4,0.4555]
[1735380874353,2.63185769,3347.5,3347.4,0.4555]
[1735380875355,0.29923,3347.5,3347.4,0.4555]
[1735380876158,3.49894154,3347.6,3347.3,0.4656]
[1735380876159,0.29923,3347.4,3347.3,0.4656]
[1735380876457,0.74463,3347.4,3347.3,0.4656]
[1735380877554,4.25205731,3347.4,3347.3,0.4656]
[1735380878761,0.74463,3347.4,3347.3,0.4656]
[1735380880162,0.29925,3347.2,3347.1,0.4251]
[1735380881265,3.80871308,3347.2,3347.1,0.4251]
[1735380885366,0.29925,3347.2,3347.1,0.4251]
[1735380886762,4.97190537,3347.2,3347.1,0.4251]
[1735380887462,4.97190537,3347.2,3346.9,0.4534]
[1735380887463,0.29926,3347.0,3346.9,0.4534]
[1735380888367,0.75646,3347.0,3346.9,0.4534]
[1735380891569,0.29926,3347.0,3346.9,0.75267]
[1735380891774,0.29926,3347.0,3346.9,0.4534]
[1735380892070,0.29926,3347.0,3346.9,0.75267]
[1735380892268,0.29926,3347.0,3346.9,0.4534]
[1735380892768,6.28062286,3347.1,3346.8,41.99728]
[1735380892769,0.29927,3346.9,3346.8,41.99728]
[1735380894171,0.29927,3346.9,3346.8,41.698]
[1735380894560,4.68521563,3346.9,3346.7,3.2078]
[1735380894760,0.73498,3346.8,3346.7,3.2078]
[1735380895165,0.2993,3346.6,3346.5,40.8]
[1735380898471,0.7353,3346.6,3346.5,40.8]
[1735380899773,0.7353,3346.6,3346.3,3.2078]
[1735380899774,0.436,3346.6,3346.3,3.2078]
[1735380900073,0.29935,3346.0,3345.9,0.4467]
[1735380900371,0.29935,3346.0,3345.9,41.2467]
[1735380900675,0.29935,3346.1,3345.9,41.2467]
[1735380900875,0.29935,3346.1,3346.0,0.29935]
[1735380901374,0.29935,3346.0,3345.9,41.54606]
[1735380901674,0.29935,3346.0,3345.9,41.2467]
[1735380902378,0.29935,3346.0,3345.9,41.54606]
[1735380902579,0.29935,3346.1,3346.0,0.29935]
[1735380902784,0.29935,3346.0,3345.9,41.54605]
[1735380903470,0.29935,3346.0,3345.9,41.2467]
[1735380903672,0.29935,3346.0,3345.9,41.54606]
[1735380904377,0.29935,3346.1,3346.0,0.29935]
[1735380906280,3.50117979,3346.1,3346.0,0.29935]
[1735380907479,0.29934,3346.1,3346.0,0.29935]
[1735380907876,2.33391803,3346.2,3346.1,0.29934]
[1735380908974,0.29932,3346.4,3346.3,0.29933]
[1735380909575,0.29933,3346.3,3346.2,0.29933]
[1735380911472,0.29933,3346.2,3346.1,1.20884]
[1735380912379,2.63316515,3346.3,3346.2,0.29933]
[1735380912879,0.29933,3346.2,3346.1,1.20884]
[1735380913079,2.63316515,3346.3,3346.2,0.29933]
[1735380913672,2.33383515,3346.3,3346.2,0.29933]
[1735380914076,2.33383515,3346.4,3346.3,0.29933]
[1735380914381,0.29933,3346.2,3346.1,1.20884]
[1735380915280,0.29933,3346.2,3346.1,0.9095]
[1735380916676,3.80050979,3346.2,3346.1,0.9095]
[1735380917977,2.63258834,3346.2,3346.1,0.9095]
[1735380918174,2.75945834,3346.2,3345.9,41.2467]
[1735380918379,0.29935,3346.0,3345.9,41.2467]
[1735380919279,0.29935,3346.0,3345.9,41.54606]
[1735380919678,2.63260834,3346.0,3345.9,41.54606]
[1735380920782,0.29935,3346.0,3345.9,41.54606]
[1735380923379,2.33325834,3346.1,3345.4,3.2078]
[1735380923683,0.29937,3345.9,3345.8,0.29937]
[1735380923983,0.29937,3345.9,3345.8,41.09937]
[1735380925284,2.33325834,3346.0,3345.8,40.8]
[1735380925485,2.63261834,3346.0,3345.9,0.73646]
[1735380926384,2.63261834,3346.0,3345.9,0.4371]
[1735380929889,0.29936,3346.0,3345.9,0.4371]
[1735380932294,0.29936,3345.9,3345.8,40.8]
[1735380932487,0.29936,3345.9,3345.8,41.2591]
[1735380932688,0.29936,3345.9,3345.8,41.55847]
[1735380933098,0.29936,3345.9,3345.8,41.2591]
[1735380934495,3.50117979,3346.0,3345.6,3.668]
[1735380934803,0.29938,3345.7,3345.6,4.1285]
[1735380934999,0.29938,3345.7,3345.6,44.9285]
[1735380936491,3.80055979,3345.7,3345.6,44.9285]
[1735380937899,0.29938,3345.7,3345.6,44.9285]
[1735380941100,4.97716809,3345.7,3345.6,44.9285]
[1735380941700,4.97716809,3345.7,3345.0,4.69899933]
[1735380941701,4.67778809,3345.7,3345.0,4.69899933]
[1735380941904,0.29942,3345.3,3345.1,0.4243]
[1735380942303,0.29942,3345.3,3345.1,41.2243]
[1735380942604,3.2078,3345.4,3345.1,41.2243]
[1735380942903,0.29942,3345.2,3345.1,41.2243]
[1735380943196,3.80206676,3345.2,3345.1,41.2243]
[1735380944607,0.29942,3345.2,3345.1,41.2243]
[1735380945303,0.73542,3345.2,3345.1,41.2243]
[1735380946203,0.29942,3345.2,3345.1,40.8]
[1735380946405,0.74861,3345.1,3344.3,7.93232848]
[1735380946595,0.29946,3344.8,3344.7,0.29947]
[1735380946796,0.29946,3344.8,3344.7,41.09947]
[1735380947000,0.29946,3344.8,3344.7,41.53857]
[1735380947403,2.33445301,3344.8,3344.7,41.53857]
[1735380950310,0.29946,3344.9,3344.8,0.29946]
[1735380950609,0.29946,3344.9,3344.8,0.75046]
[1735380951911,0.29945,3344.9,3344.8,0.75046]
[1735380952125,2.63389301,3345.0,3344.9,0.29945]
[1735380952307,0.29945,3344.9,3344.8,0.75046]
[1735380952509,2.33445301,3345.0,3344.8,0.451]
[1735380953109,0.29945,3344.9,3344.8,0.29945]
[1735380953414,2.63390301,3345.0,3344.9,0.29945]
[1735380954012,2.63390301,3345.0,3344.9,1.18185]
[1735380954214,0.29945,3345.0,3344.9,1.18185]
[1735380954716,2.33445301,3345.1,3345.0,0.29944]
[1735380955916,3.2078,3345.4,3345.3,0.29942]
[1735380956312,0.29942,3345.3,3345.2,0.29942]
[1735380956821,0.29943,3345.2,3345.1,0.29943]
[1735380958221,0.4571,3345.3,3344.9,0.8824]
[1735380958418,0.29942,3345.2,3345.0,0.29944]
[1735380958611,0.29942,3345.2,3344.9,0.8824]
[1735380958823,0.29944,3345.0,3344.9,0.4253]
[1735380959616,0.29945,3344.9,3344.8,0.00252592]
[1735380959823,0.75655,3344.9,3344.8,0.00252592]
[1735380961426,3.09100301,3344.9,3344.8,0.00252592]
[1735380963025,4.25822952,3344.9,3344.8,0.00252592]
[1735380964028,3.80112952,3344.9,3344.8,0.00252592]
[1735380967326,0.29945,3344.9,3344.8,0.00252592]
[1735380969220,3.79429106,3344.9,3344.8,0.00252592]
[1735380969428,3.79429106,3344.9,3344.8,40.80252592]
[1735380971628,3.79429106,3344.9,3344.8,0.00252592]
[1735380972023,0.29945,3344.9,3344.8,0.00252592]
[1735380974329,0.62415,3344.9,3344.8,0.00252592]
[1735380975628,0.74872,3344.6,3343.7,3.2078]
[1735380975932,0.29953,3344.1,3344.0,0.29953]
[1735380976123,3.2078,3344.5,3343.8,42.1733]
[1735380976325,3.2078,3344.5,3343.9,0.74886]
[1735380976519,3.50729,3344.5,3344.3,0.2995]
[1735380976828,3.50729,3344.5,3344.4,1.3629]
[1735380977026,3.50729,3344.5,3344.4,0.4522]
[1735380977429,3.96189,3344.5,3344.4,0.4522]
[1735380978528,7.45619171,3344.5,3344.4,0.4522]
[1735380978830,7.92189171,3344.5,3344.4,0.4522]
[1735380979822,0.29952,3344.2,3344.0,0.29953]
[1735380980022,0.29952,3344.2,3344.1,0.4501]
[1735380980632,7.62240171,3344.5,3344.1,0.4501]
[1735380980833,2.33016193,3344.4,3344.1,0.74962]
[1735380981028,0.29951,3344.2,3344.1,0.4501]
[1735380982029,2.62967193,3344.2,3344.1,0.4501]
[1735380983627,0.29953,3344.0,3343.9,0.4658]
[1735380984335,0.29954,3343.9,3343.8,40.8]
[1735380984529,0.73324,3343.9,3343.8,40.8]
[1735380985236,0.4337,3343.9,3343.7,3.2078]
[1735380985430,0.29955,3343.8,3343.7,3.2078]
[1735380985931,0.29955,3343.8,3343.7,44.0078]
[1735380986628,0.29955,3343.8,3343.7,40.8]
[1735380989832,2.62996599,3343.9,3343.7,41.09956]
[1735380990037,0.29955,3343.8,3343.7,40.8]
[1735381001041,2.62996599,3343.8,3343.7,40.8]
[1735381001541,0.29956,3343.7,3343.6,0.4394]
[1735381002342,0.29957,3343.6,3343.5,0.4513]
[1735381002544,3.97267,3343.6,3343.5,0.4513]
[1735381003542,6.30308599,3343.6,3343.5,0.4513]
[1735381004148,0.29959,3343.3,3343.2,0.441]
[1735381007648,2.62925203,3343.3,3343.2,0.441]
[1735381019058,6.70210171,3343.4,3343.2,0.441]
[1735381019459,6.70210171,3343.4,3343.3,0.76799]
[1735381020260,3.2078,3343.4,3343.3,0.76799]
[1735381020868,3.50739,3343.4,3343.3,0.4684]
[1735381022553,5.83913713,3343.4,3343.3,0.4684]
[1735381023561,7.00169171,3343.4,3343.3,0.4684]
[1735381024659,8.18517809,3343.4,3343.3,0.4684]
[1735381026660,0.29959,3343.3,3343.2,0.441]
[1735381028262,0.29964,3342.8,3342.6,0.29965]
[1735381028461,0.29964,3342.8,3342.7,1.64465]
[1735381028655,0.29964,3342.8,3342.7,42.44465]
[1735381029260,0.29964,3342.8,3342.7,42.145]
[1735381029563,2.63476478,3342.9,3342.7,1.64464]
[1735381030158,2.63476478,3342.9,3342.8,40.8]
[1735381031864,2.33513478,3342.9,3342.8,41.09964]
[1735381032469,3.50270217,3342.9,3342.8,41.09964]
[1735381033161,3.80233217,3342.9,3342.8,41.09964]
[1735381033361,3.50270217,3342.9,3342.8,41.09964]
[1735381033663,0.29963,3342.9,3342.8,41.09964]
[1735381034065,3.50270217,3343.1,3342.8,41.09964]
[1735381034356,2.33572934,3342.9,3342.8,41.09964]
[1735381034962,2.63535934,3342.9,3342.8,41.09964]
[1735381035164,2.33572934,3342.9,3342.8,41.09964]
[1735381037465,3.80232217,3343.0,3342.8,40.8]
[1735381037466,6.13805151,3343.0,3342.8,40.8]
[1735381037670,2.33572934,3343.0,3342.9,0.29963]
[1735381038666,2.33572934,3343.1,3342.9,40.8]
[1735381038870,2.63533934,3343.1,3343.0,0.29962]
[1735381040571,0.29962,3343.0,3342.9,41.09962]
[1735381040772,2.63534934,3343.1,3343.0,0.29962]
[1735381041170,3.80232217,3343.1,3343.0,0.29962]
[1735381041369,3.80232217,3343.1,3342.9,40.8]
[1735381041370,3.50270217,3343.1,3342.6,4.69899933]
[1735381041671,3.50745,3342.7,3342.6,4.69899933]
[1735381042673,3.2078,3342.7,3342.2,42.46209]
[1735381042872,0.29968,3342.4,3342.2,42.46209]
[1735381043787,3.2078,3342.7,3342.2,42.1624]
[1735381044090,0.29967,3342.4,3342.2,42.46209]
[1735381044384,3.50387966,3342.4,3342.3,0.29968]
[1735381044584,3.80354966,3342.4,3342.2,42.46209]
[1735381045789,2.33562429,3342.3,3342.2,42.46209]
[1735381049591,3.50387966,3342.4,3342.2,42.46209]
[1735381049592,1.62912429,3342.4,3342.2,45.3702]
[1735381049788,3.50387966,3342.5,3342.2,50.3702]
[1735381049992,1.38467966,3342.5,3342.4,0.29967]
[1735381050497,4.67183955,3342.7,3342.6,0.29966]
[1735381051194,0.29963,3342.9,3342.8,0.29964]
[1735381051895,0.4276,3343.0,3342.4,53.20087256]
[1735381052097,0.72723,3343.0,3342.9,0.29963]
[1735381053104,0.4276,3343.0,3342.5,4.70826656]
[1735381053292,0.29963,3342.9,3342.8,0.29963]
[1735381053503,0.29963,3343.0,3342.9,0.29963]
[1735381053796,0.29963,3342.9,3342.8,0.29963]
[1735381054997,0.4538,3343.2,3342.5,7.91606656]
[1735381055194,0.29962,3343.1,3343.0,0.29962]
[1735381058798,0.4538,3343.2,3342.7,0.9086]
[1735381059097,5.42903955,3343.5,3342.9,0.74908]
[1735381059296,5.42903955,3343.5,3343.4,0.29959]
[1735381059703,5.42903955,3343.5,3343.4,41.09959]
[1735381060116,0.7572,3343.5,3343.4,41.09959]
[1735381060497,0.4321,3343.5,3343.4,41.09959]
[1735381060699,4.67183955,3343.8,3343.7,0.29956]
[1735381061004,4.63651921,3343.8,3343.7,0.29956]
[1735381061205,4.63651921,3343.8,3343.7,5.29956]
[1735381061698,4.63651921,3343.8,3343.7,46.09956]
[1735381061902,2.96871921,3343.8,3343.7,46.09956]
[1735381062306,1.34026921,3343.8,3343.7,46.09956]
[1735381062499,0.58096921,3343.8,3343.7,46.09956]
[1735381062803,3.87664529,3344.0,3343.9,0.29954]
[1735381063010,1.62360529,3344.0,3343.9,4.68534]
[1735381063200,0.53339529,3344.0,3343.9,9.68534]
[1735381063595,3.2078,3345.2,3343.9,50.1858]
[1735381063799,0.4298,3345.6,3345.5,0.2994]
[1735381063800,3.6376,3345.6,3345.5,0.2994]
[1735381063999,3.2078,3345.6,3345.5,0.2994]
[1735381064407,3.2078,3345.6,3345.5,41.0994]
[1735381066908,3.2078,3345.6,3345.5,0.2994]
[1735381067413,3.2078,3345.6,3345.5,41.0994]
[1735381068107,0.8985,3345.7,3345.6,0.29939]
[1735381068304,0.4615,3345.7,3345.6,0.29939]
[1735381070916,0.4615,3345.7,3345.6,41.09939]
[1735381073215,0.29939,3345.6,3345.4,3.2078]
[1735381073418,0.2994,3345.5,3345.4,3.2078]
[1735381073718,0.4371,3345.6,3345.4,3.2078]
[1735381073920,0.73649,3345.6,3345.4,3.2078]
[1735381075039,0.4371,3345.6,3345.4,3.5072]
[1735381075221,0.4371,3345.6,3345.5,0.2994]
[1735381075415,0.4371,3345.6,3345.4,3.5072]
[1735381075920,0.4371,3345.6,3345.5,0.2994]
[1735381076417,0.4371,3345.6,3345.4,3.2078]
[1735381076622,0.29941,3345.4,3345.3,40.8]
[1735381080718,0.76081,3345.4,3345.3,40.8]
[1735381081214,0.4614,3345.4,3345.0,3.2078]
[1735381081417,0.29946,3344.8,3344.7,0.29946]
[1735381081616,0.29946,3344.9,3344.7,0.29946]
[1735381081822,0.73235,3345.0,3344.8,41.09945]
[1735381082123,0.4329,3345.0,3344.8,41.09945]
[1735381082324,0.73235,3345.0,3344.8,41.09945]
[1735381082621,0.29945,3344.9,3344.8,40.8]
[1735381082825,0.29945,3344.9,3344.8,41.09946]
[1735381083328,0.4329,3345.0,3344.8,41.09946]
[1735381083533,0.73235,3345.0,3344.8,41.09946]
[1735381083725,0.4329,3345.0,3344.8,40.8]
[1735381083921,0.29945,3344.9,3344.8,40.8]
[1735381086021,0.29947,3344.7,3344.6,0.29947]
[1735381086519,0.29947,3344.7,3344.6,41.09947]
[1735381087116,0.29947,3344.8,3344.6,41.09947]
[1735381087321,0.4386,3344.7,3344.6,41.09947]
[1735381087723,0.73807,3344.7,3344.6,40.8]
[1735381088325,0.73807,3344.7,3344.6,41.09948]
[1735381088526,0.73807,3344.7,3344.6,40.8]
[1735381088724,0.2995,3344.5,3344.3,0.2995]
[1735381089324,0.2995,3344.5,3344.4,40.8]
[1735381089831,0.2995,3344.4,3344.2,3.50731]
[1735381090128,0.4531,3344.3,3344.2,3.50731]
[1735381090327,0.4531,3344.3,3344.2,44.30731]
[1735381090624,0.7526,3344.3,3344.2,3.2078]
[1735381091127,0.7526,3344.3,3344.2,44.0078]
[1735381092622,0.7526,3344.3,3344.2,3.2078]
[1735381094930,0.4531,3344.3,3344.2,3.50731]
[1735381095432,0.4531,3344.3,3344.2,44.30731]
[1735381097433,0.7526,3344.3,3344.2,44.0078]
[1735381097623,0.7526,3344.3,3344.2,3.2078]
[1735381099029,0.4531,3344.3,3344.1,0.29952]
[1735381099229,0.29951,3344.2,3344.0,0.29953]
[1735381099430,0.4476,3344.1,3344.0,0.29953]
[1735381100228,0.4476,3344.1,3343.7,3.2078]
[1735381100526,0.4626,3344.0,3343.8,0.29954]
[1735381100729,0.76214,3344.0,3343.8,0.29954]
[1735381100935,0.4626,3344.0,3343.9,41.09954]
[1735381103840,0.76213,3344.0,3343.9,41.09954]
[1735381108042,0.4626,3344.0,3343.9,41.09954]
[1735381108650,0.76213,3344.0,3343.9,41.09954]
[1735381109550,0.4626,3344.0,3343.9,41.09954]
[1735381109755,0.76213,3344.0,3343.9,41.09954]
[1735381111448,0.76213,3344.0,3343.9,40.8]
[1735381118752,0.29955,3343.8,3343.7,3.2078]
[1735381121858,0.29955,3343.8,3343.7,44.0078]
[1735381122960,0.4626,3344.0,3343.7,3.2078]
[1735381123161,0.4626,3344.0,3343.2,3.2078]
[1735381123359,0.29959,3343.4,3343.3,0.29959]
[1735381124659,0.29959,3343.4,3343.3,41.09959]
[1735381124859,1.21146,3344.0,3343.3,40.8]
[1735381125054,0.29958,3343.5,3343.4,0.29958]
[1735381126764,0.4626,3344.0,3343.3,40.8]
[1735381127056,0.29958,3343.5,3343.4,0.29958]
[1735381127654,0.4454,3343.8,3343.3,40.8]
[1735381127860,0.29954,3343.9,3343.8,0.29954]
[1735381129369,0.29956,3343.8,3343.7,0.29955]
[1735381131663,0.4626,3344.0,3343.4,4.6937894]
[1735381131973,0.29958,3343.5,3343.4,4.6937894]
[1735381132268,0.29959,3343.4,3343.3,4.6937894]
[1735381132466,1.16859,3343.4,3343.3,4.6937894]
[1735381133270,1.16859,3343.4,3342.9,0.29962]
[1735381133271,0.29962,3343.1,3342.9,0.29962]
[1735381133467,0.869,3343.4,3342.9,0.29962]
[1735381133666,0.29962,3343.0,3342.9,0.29962]
[1735381134463,0.29963,3342.9,3342.8,0.29963]
[1735381134768,0.869,3343.4,3342.7,7.9015894]
[1735381135065,0.29962,3343.0,3342.9,41.09962]
[1735381135862,0.4534,3343.3,3342.9,40.8]
[1735381136066,0.29962,3343.1,3343.0,0.29962]
[1735381136367,0.869,3343.4,3342.9,40.8]
[1735381136569,0.869,3343.4,3343.3,0.29959]
[1735381137172,0.29956,3343.8,3343.6,0.29957]
[1735381137467,4.93772371,3343.7,3343.6,0.29957]
[1735381138066,0.29957,3343.6,3343.5,0.29957]
[1735381138365,0.74537,3343.6,3343.5,0.29957]
[1735381139271,0.4458,3343.6,3343.1,7.9015894]
[1735381139465,0.2996,3343.3,3343.2,0.29959]
[1735381140364,0.4458,3343.6,3343.1,3.2078]
[1735381140572,0.29961,3343.1,3343.0,4.9934094]
[1735381140872,0.29962,3343.0,3342.9,4.6937894]
[1735381141069,1.21352,3343.0,3342.9,4.6937894]
[1735381141873,0.29963,3342.9,3342.8,41.09964]
[1735381142973,1.21353,3343.0,3342.9,0.29963]
[1735381143365,0.9139,3343.0,3342.8,40.8]
[1735381143568,1.21353,3343.0,3342.8,40.8]
[1735381143977,3.2078,3343.5,3342.8,40.8]
[1735381144176,0.91,3343.4,3343.3,0.29959]
[1735381144770,0.441,3343.4,3343.3,0.29959]
[1735381148380,0.74059,3343.4,3343.3,0.29959]
[1735381149581,1.23066,3343.7,3343.1,3.2078]
[1735381149780,1.23066,3343.7,3343.6,0.29957]
[1735381150984,0.29957,3343.6,3343.5,0.29957]
[1735381151484,0.29959,3343.4,3343.3,0.29959]
[1735381151684,0.29959,3343.3,3343.2,4.6937894]
[1735381151884,0.29959,3343.3,3343.2,4.9933894]
[1735381152678,0.29959,3343.3,3343.2,0.2996]
[1735381155686,3.2078,3343.5,3342.8,45.4937894]
[1735381155989,1.22851,3343.2,3343.1,0.29961]
[1735381158985,0.9289,3343.2,3342.8,45.4937894]
[1735381159284,0.72982,3343.1,3343.0,0.29962]
[1735381161889,0.29963,3342.9,3342.8,45.7934194]
[1735381162092,0.29963,3342.9,3342.8,4.9934194]
[1735381162391,0.29963,3342.9,3342.8,4.6937894]
[1735381162584,0.29964,3342.8,3342.7,48.7015894]
[1735381163988,0.29964,3342.8,3342.7,44.0078]
[1735381164687,0.29964,3342.8,3342.7,44.30745]
[1735381165894,0.29964,3342.8,3342.7,44.30744]
[1735381168094,0.29964,3342.8,3342.7,41.09965]
[1735381169182,0.29964,3342.8,3342.7,41.09964]
[1735381169387,0.29964,3342.9,3342.8,0.29964]
[1735381170093,0.29964,3342.8,3342.7,41.09964]
[1735381171595,0.29964,3342.8,3342.7,40.8]
[1735381177001,0.29966,3342.6,3342.5,0.29966]
[1735381177598,0.29966,3342.6,3342.5,41.09966]
[1735381177899,0.74436,3342.6,3342.5,41.09966]
[1735381179295,0.74436,3342.6,3342.5,40.8]
[1735381182803,0.74436,3342.6,3342.5,41.09967]
[1735381183302,0.4447,3342.6,3342.5,41.09967]
[1735381183600,0.74436,3342.6,3342.5,41.09967]
[1735381184393,0.74436,3342.6,3342.5,40.8]
[1735381190708,0.29967,3342.5,3342.4,0.29967]
[1735381191207,0.29967,3342.5,3342.4,40.8]
[1735381194204,0.29967,3342.5,3342.4,41.09967]
[1735381195912,0.29967,3342.5,3342.4,40.8]
[1735381201013,0.29967,3342.5,3342.4,41.09967]
[1735381201513,0.4447,3342.6,3342.4,40.8]
[1735381201718,0.4447,3342.6,3342.5,0.29967]
[1735381202009,0.4447,3342.6,3342.5,0.65777]
[1735381203212,7.84596371,3342.8,3342.5,0.65777]
[1735381203213,4.63816371,3343.1,3342.5,8.2596894]
[1735381203419,4.63816371,3343.1,3342.5,13.3182894]
[1735381203616,4.63816371,3343.1,3343.0,0.29962]
[1735381204113,4.93777371,3343.1,3343.0,0.29962]
[1735381204313,4.63816371,3343.1,3343.0,0.29962]
[1735381204615,4.93777371,3343.1,3343.0,0.29962]
[1735381204811,0.29961,3343.1,3343.0,4.9934094]
[1735381205111,0.29959,3343.3,3343.2,0.2996]
[1735381205708,4.6092,3343.4,3343.0,45.8518894]
[1735381205913,0.4754,3343.4,3343.3,0.29959]
[1735381206711,5.55016371,3343.7,3343.1,4.7524894]
[1735381206911,3.6573,3343.8,3343.7,0.29956]
[1735381207114,0.4495,3343.8,3343.7,0.29956]
[1735381207413,4.63816371,3343.9,3343.8,0.29955]
[1735381207614,4.63816371,3343.9,3343.8,3.50735]
[1735381208214,0.4671,3344.1,3344.0,0.29953]
[1735381209414,0.76662,3344.1,3344.0,0.29953]
[1735381209812,0.4671,3344.1,3344.0,0.29953]
[1735381212116,0.4807,3344.3,3344.2,0.29951]
[1735381212816,0.4807,3344.3,3344.2,41.09951]
[1735381214517,0.4807,3344.5,3344.2,40.8]
[1735381214716,0.4807,3344.5,3344.4,0.2995]
[1735381216023,1.27869,3344.5,3344.4,0.2995]
[1735381216523,1.27869,3344.5,3344.0,0.4305]
[1735381216726,0.4864,3344.4,3344.3,0.2995]
[1735381217924,0.7859,3344.4,3344.3,0.2995]
[1735381219022,0.2995,3344.4,3344.3,0.2995]
[1735381221425,3.2078,3344.6,3344.1,40.8]
[1735381221627,0.2995,3344.4,3344.3,0.2995]
[1735381222128,0.29951,3344.3,3344.2,0.29951]
[1735381224321,0.2995,3344.4,3344.3,0.2995]
[1735381226029,3.2078,3344.6,3344.1,40.8]
[1735381226230,0.29951,3344.2,3344.1,41.09952]
[1735381227925,0.29951,3344.2,3344.1,40.8]
[1735381228326,0.29956,3343.7,3343.6,0.29956]
[1735381228825,0.29956,3343.7,3343.6,41.09956]
[1735381229427,0.29956,3343.7,3343.6,41.09957]
[1735381230529,0.29956,3343.7,3343.6,40.8]
[1735381231328,0.29957,3343.6,3343.5,3.2078]
[1735381231724,0.29957,3343.6,3343.5,44.0078]
[1735381237637,0.29962,3343.1,3343.0,0.29962]
[1735381238133,0.29962,3343.1,3343.0,41.09962]
[1735381239533,0.29962,3343.1,3343.0,40.8]
[1735381240340,0.29962,3343.1,3343.0,41.09962]
[1735381240636,0.29962,3343.1,3343.0,40.8]
[1735381241234,0.29962,3343.1,3343.0,41.09962]
[1735381242438,0.29962,3343.1,3343.0,40.8]
[1735381244542,0.29962,3343.1,3343.0,41.09962]
[1735381245039,0.29962,3343.1,3343.0,40.8]
[1735381246338,0.29962,3343.1,3343.0,41.09962]
[1735381248035,0.29958,3343.5,3343.4,0.29958]
[1735381248242,3.2078,3343.6,3343.0,40.8]
[1735381248433,0.74895,3343.5,3343.0,40.8]
[1735381248633,0.29961,3343.1,3343.0,40.8]
[1735381249431,0.29963,3342.9,3342.8,3.2078]
[1735381249636,3.2078,3343.2,3342.7,0.29965]
[1735381249837,0.29964,3342.8,3342.7,0.29965]
[1735381250444,0.29964,3342.8,3342.7,41.09965]
[1735381250638,3.2078,3343.2,3342.7,40.8]
[1735381250947,0.29962,3343.0,3342.9,0.29963]
[1735381252044,0.29962,3343.0,3342.7,40.8]
[1735381252240,3.2078,3343.2,3342.7,40.8]
[1735381252542,0.29964,3342.8,3342.7,40.8]
[1735381253141,0.29964,3342.8,3342.7,41.09965]
[1735381256451,3.2078,3343.2,3342.7,40.8]
[1735381256651,3.50741,3343.2,3343.1,0.29961]
[1735381257054,3.50741,3343.2,3343.1,41.09961]
[1735381257454,0.29961,3343.2,3343.1,40.8]
[1735381257653,0.29961,3343.2,3343.1,41.09961]